fUST/lending_fUST_20260501
["ID","MTS","AMOUNT","RATE_DAILY","PERIOD"]
[421428014,1777631444000,-500.0,0.00018999,2]
[421428012,1777631444000,-500.0,0.00018999,2]
[421428011,1777631444000,-500.0,0.00018999,2]
[421428017,1777631444000,-257.5371193,0.00018999,2]
[421428018,1777631444000,-200000.0,0.00019,2]
[421428016,1777631444000,-500.0,0.00018999,2]
[421428019,1777631444000,-406.45387243,0.00019,2]
[421428020,1777631444000,-1152.05375121,0.00019,5]
[421428009,1777631444000,-500.0,0.00018998,2]
[421428022,1777631444000,-151.0,0.00019,2]
[421428030,1777631444000,-1305.2,0.00019008,5]
[421428021,1777631444000,-185686.68393731,0.00019,4]
[421428034,1777631444000,-151.0,0.000191,2]
[421428032,1777631444000,-151.0,0.000191,2]
[421428029,1777631444000,-700.0,0.00019,2]
[421428033,1777631444000,-151.0,0.000191,2]
[421428031,1777631444000,-4609.45381523,0.00019078,2]
[421428026,1777631444000,-151.0,0.00019,2]
[421428024,1777631444000,-151.0,0.00019,2]
[421428028,1777631444000,-209.010532,0.00019,2]
[421428023,1777631444000,-151.0,0.00019,2]
[421428025,1777631444000,-151.0,0.00019,2]
[421428027,1777631444000,-151.0,0.00019,2]
[421428092,1777631445000,-10174.307403,0.00019178,2]
[421428095,1777631445000,-500.0,0.00019178,2]
[421428088,1777631445000,-469.40642849,0.00019178,2]
[421428093,1777631445000,-500.0,0.00019178,2]
[421428091,1777631445000,-500.0,0.00019178,2]
[421428094,1777631445000,-500.0,0.00019178,2]
[421428090,1777631445000,-720.66,0.00019178,2]
[421428096,1777631445000,-626.99,0.00019178,2]
[421428099,1777631445000,-194.54746379,0.00019178,2]
[421428103,1777631445000,-500.0,0.00019178,2]
[421428097,1777631445000,-500.0,0.00019178,2]
[421428098,1777631445000,-1145.1351,0.00019178,2]
[421428102,1777631445000,-500.0,0.00019178,2]
[421428101,1777631445000,-813.11,0.00019178,2]
[421428106,1777631445000,-500.0,0.00019178,2]
[421428104,1777631445000,-724.19,0.00019178,2]
[421428089,1777631445000,-1135.59,0.00019178,2]
[421428107,1777631445000,-500.0,0.00019178,2]
[421428100,1777631445000,-500.0,0.00019178,2]
[421428087,1777631445000,-500.0,0.00019178,2]
[421428070,1777631445000,-500.75466468,0.00019173,2]
[421428085,1777631445000,-500.0,0.00019178,2]
[421428105,1777631445000,-1646.83,0.00019178,2]
[421428067,1777631445000,-500.0,0.00019173,2]
[421428068,1777631445000,-500.0,0.00019173,2]
[421428069,1777631445000,-500.0,0.00019173,2]
[421428073,1777631445000,-500.0,0.00019173,2]
[421428071,1777631445000,-500.0,0.00019173,2]
[421428072,1777631445000,-220.3586627,0.00019173,2]
[421428074,1777631445000,-362.80660476,0.00019173,2]
[421428086,1777631445000,-500.0,0.00019178,2]
[421428075,1777631445000,-502.67907353,0.00019173,2]
[421428077,1777631445000,-532.33383261,0.00019173,2]
[421428078,1777631445000,-500.0,0.00019173,2]
[421428080,1777631445000,-500.0,0.00019173,2]
[421428079,1777631445000,-500.0,0.00019173,2]
[421428082,1777631445000,-20028.87388252,0.00019177,2]
[421428081,1777631445000,-500.0,0.00019173,2]
[421428083,1777631445000,-10387.209747,0.00019178,2]
[421428084,1777631445000,-500.0,0.00019178,2]
[421428076,1777631445000,-188.02634384,0.00019173,2]
[421428109,1777631445000,-500.0,0.00019178,2]
[421428130,1777631445000,-711.95,0.00019178,2]
[421428110,1777631445000,-500.0,0.00019178,2]
[421428133,1777631445000,-859.33,0.00019178,2]
[421428135,1777631445000,-500.0,0.00019178,2]
[421428136,1777631445000,-500.0,0.00019178,2]
[421428139,1777631445000,-500.0,0.00019178,2]
[421428138,1777631445000,-500.0,0.00019178,2]
[421428137,1777631445000,-500.0,0.00019178,2]
[421428108,1777631445000,-514.42,0.00019178,2]
[421428140,1777631445000,-500.0,0.00019178,2]
[421428134,1777631445000,-500.0,0.00019178,2]
[421428142,1777631445000,-500.0,0.00019178,2]
[421428147,1777631445000,-90.93064963,0.00019178,2]
[421428144,1777631445000,-394.33446187,0.00019178,2]
[421428145,1777631445000,-500.0,0.00019178,2]
[421428146,1777631445000,-500.0,0.00019178,2]
[421428150,1777631445000,-151.0,0.00016438,2]
[421428149,1777631445000,-151.0,0.00016438,2]
[421428148,1777631445000,-151.0,0.00016438,2]
[421428151,1777631445000,-151.0,0.00016438,2]
[421428143,1777631445000,-537.16,0.00019178,2]
[421428132,1777631445000,-500.0,0.00019178,2]
[421428141,1777631445000,-500.0,0.00019178,2]
[421428129,1777631445000,-500.0,0.00019178,2]
[421428131,1777631445000,-533.16688589,0.00019178,2]
[421428112,1777631445000,-1579.5,0.00019178,2]
[421428111,1777631445000,-500.0,0.00019178,2]
[421428113,1777631445000,-500.0,0.00019178,2]
[421428116,1777631445000,-220.37993933,0.00019178,2]
[421428115,1777631445000,-500.0,0.00019178,2]
[421428117,1777631445000,-589.19,0.00019178,2]
[421428118,1777631445000,-500.0,0.00019178,2]
[421428121,1777631445000,-336.99987412,0.00019178,2]
[421428114,1777631445000,-500.0,0.00019178,2]
[421428119,1777631445000,-1077.0,0.00019178,2]
[421428123,1777631445000,-500.0,0.00019178,2]
[421428124,1777631445000,-500.0,0.00019178,2]
[421428122,1777631445000,-1077.48,0.00019178,2]
[421428125,1777631445000,-868.22,0.00019178,2]
[421428126,1777631445000,-500.0,0.00019178,2]
[421428128,1777631445000,-698.83,0.00019178,2]
[421428127,1777631445000,-500.0,0.00019178,2]
[421428120,1777631445000,-500.0,0.00019178,2]
[421428165,1777631446000,-500.49182148,0.00019178,2]
[421428162,1777631446000,-500.0,0.00019178,2]
[421428164,1777631446000,-569.26,0.00019178,2]
[421428168,1777631446000,-500.0,0.00019178,2]
[421428166,1777631446000,-500.0,0.00019178,2]
[421428169,1777631446000,-500.0,0.00019178,2]
[421428163,1777631446000,-500.0,0.00019178,2]
[421428167,1777631446000,-572.55,0.00019178,2]
[421428161,1777631446000,-657.24,0.00019178,2]
[421428158,1777631446000,-500.0,0.00019178,2]
[421428160,1777631446000,-500.0,0.00019178,2]
[421428156,1777631446000,-151.0,0.00016962,2]
[421428157,1777631446000,-409.06935037,0.00019178,2]
[421428155,1777631446000,-151.0,0.00016438,2]
[421428153,1777631446000,-245.0,0.00016438,2]
[421428154,1777631446000,-21.283014,0.00016438,2]
[421428152,1777631446000,-151.0,0.00016438,2]
[421428170,1777631446000,-500.0,0.00019178,2]
[421428159,1777631446000,-500.0,0.00019178,2]
[421428172,1777631446000,-2073.43,0.00019178,2]
[421428186,1777631446000,-500.0,0.00019178,2]
[421428174,1777631446000,-500.0,0.00019178,2]
[421428193,1777631446000,-500.0,0.00019178,2]
[421428194,1777631446000,-397.98860328,0.00019178,2]
[421428190,1777631446000,-500.0,0.00019178,2]
[421428191,1777631446000,-2218.18,0.00019178,2]
[421428189,1777631446000,-500.0,0.00019178,2]
[421428171,1777631446000,-500.0,0.00019178,2]
[421428183,1777631446000,-753.21,0.00019178,2]
[421428182,1777631446000,-500.0,0.00019178,2]
[421428184,1777631446000,-500.0,0.00019178,2]
[421428192,1777631446000,-421.34721087,0.00019178,2]
[421428188,1777631446000,-500.0,0.00019178,2]
[421428180,1777631446000,-500.0,0.00019178,2]
[421428179,1777631446000,-500.0,0.00019178,2]
[421428177,1777631446000,-829.66,0.00019178,2]
[421428176,1777631446000,-684.33,0.00019178,2]
[421428178,1777631446000,-1184.72,0.00019178,2]
[421428175,1777631446000,-500.0,0.00019178,2]
[421428173,1777631446000,-731.74,0.00019178,2]
[421428181,1777631446000,-500.0,0.00019178,2]
[421428196,1777631448000,-200.0,0.00012566,2]
[421428197,1777631448000,-200.0,0.00012566,2]
[421428199,1777631448000,-200.0,0.00012566,2]
[421428202,1777631448000,-102.01139672,0.00019178,2]
[421428200,1777631448000,-151.0,0.00016438,2]
[421428201,1777631448000,-187.114338,0.00016438,2]
[421428203,1777631448000,-884.1,0.00019178,2]
[421428198,1777631448000,-200.0,0.00012566,2]
[421428204,1777631449000,-195.22192564,0.00019178,2]
[421428205,1777631449000,-79.71997038,0.00019178,2]
[421428207,1777631458000,5392.66483497,7.6e-05,2]
[421428208,1777631531000,-206.20612117,0.00017,2]
[421428457,1777632631000,-388.62202371,0.00012264,2]
[421428458,1777632631000,-206.67253099,0.00012451,2]
[421428459,1777632631000,-193.19273598,0.00013699,2]
[421428456,1777632631000,-5000.0,0.00012141,2]
[421428605,1777632640000,-160.0,0.00017006,2]
[421428603,1777632640000,-160.0,0.00017006,2]
[421428594,1777632640000,-1650.0,0.00016397,2]
[421428601,1777632640000,-206.20612117,0.00017,2]
[421428599,1777632640000,-200.58539145,0.00017,2]
[421428611,1777632640000,-151.055,0.00017503,2]
[421428596,1777632640000,-401.330089,0.00016474,2]
[421428595,1777632640000,-281.07464215,0.00016451,2]
[421428597,1777632640000,-285.51149143,0.00016837,2]
[421428593,1777632640000,-1710.522569,0.00016174,2]
[421428586,1777632640000,-300.0,0.00013972,2]
[421428588,1777632640000,-300.0,0.00013972,2]
[421428590,1777632640000,-300.0,0.00013972,2]
[421428587,1777632640000,-300.0,0.00013972,2]
[421428589,1777632640000,-300.0,0.00013972,2]
[421428585,1777632640000,-300.0,0.00013972,2]
[421428592,1777632640000,-243.87358657,0.00014451,2]
[421428591,1777632640000,-399.86526697,0.00013972,2]
[421428583,1777632640000,-300.0,0.00013972,2]
[421428580,1777632640000,-300.0,0.00013972,2]
[421428581,1777632640000,-300.0,0.00013972,2]
[421428579,1777632640000,-300.0,0.00013972,2]
[421428577,1777632640000,-300.0,0.00013972,2]
[421428578,1777632640000,-300.0,0.00013972,2]
[421428576,1777632640000,-300.0,0.00013972,2]
[421428574,1777632640000,-806.80726402,0.00013699,2]
[421428575,1777632640000,-300.0,0.00013972,2]
[421428584,1777632640000,-300.0,0.00013972,2]
[421428607,1777632640000,-206.20612117,0.000172,2]
[421428641,1777632640000,-500.0,0.00018899,2]
[421428608,1777632640000,-1000.0,0.000172,2]
[421428609,1777632640000,-1000.0,0.000172,2]
[421428643,1777632640000,-500.0,0.00018899,2]
[421428639,1777632640000,-5000.0,0.00018899,2]
[421428636,1777632640000,-442.79845311,0.00018898,2]
[421428638,1777632640000,-354.08144915,0.00018898,2]
[421428637,1777632640000,-474.96011196,0.00018898,2]
[421428634,1777632640000,-4074.075051,0.00018862,2]
[421428633,1777632640000,-3194.3313959,0.0001884,2]
[421428629,1777632640000,-652.6,0.00018809,2]
[421428631,1777632640000,-2407.8316754,0.0001884,2]
[421428642,1777632640000,-500.0,0.00018899,2]
[421428640,1777632640000,-4148.50843368,0.00018899,2]
[421428630,1777632640000,-222.84,0.00018809,2]
[421428635,1777632640000,-500.0,0.00018898,2]
[421428620,1777632640000,-307.06925776,0.00018,2]
[421428623,1777632640000,-652.6,0.00018214,2]
[421428617,1777632640000,-2150.738,0.00017556,2]
[421428624,1777632640000,-500.0,0.00018411,2]
[421428625,1777632640000,-652.6,0.00018412,2]
[421428628,1777632640000,-247.21892933,0.0001874,2]
[421428627,1777632640000,-652.6,0.00018611,2]
[421428626,1777632640000,-318.27569773,0.00018451,2]
[421428621,1777632640000,-652.6,0.00018015,2]
[421428618,1777632640000,-172.34051402,0.00018,2]
[421428622,1777632640000,-1407.56452266,0.00018104,2]
[421428614,1777632640000,-150.358,0.00017503,2]
[421428612,1777632640000,-213.324,0.00017503,2]
[421428615,1777632640000,-250.0,0.00017503,2]
[421428656,1777632641000,-618.69985746,0.00018899,2]
[421428653,1777632641000,-500.0,0.00018899,2]
[421428654,1777632641000,-500.0,0.00018899,2]
[421428651,1777632641000,-500.0,0.00018899,2]
[421428652,1777632641000,-500.0,0.00018899,2]
[421428649,1777632641000,-578.38820334,0.00018899,2]
[421428645,1777632641000,-500.0,0.00018899,2]
[421428646,1777632641000,-481.25326532,0.00018899,2]
[421428644,1777632641000,-500.0,0.00018899,2]
[421428648,1777632641000,-500.0,0.00018899,2]
[421428650,1777632641000,-500.0,0.00018899,2]
[421428655,1777632641000,-500.0,0.00018899,2]
[421428647,1777632641000,-500.0,0.00018899,2]
[421428658,1777632641000,-500.0,0.00018899,2]
[421428666,1777632641000,-500.0,0.00018899,2]
[421428670,1777632641000,-631.25326532,0.00018899,2]
[421428671,1777632641000,-500.0,0.00018899,2]
[421428672,1777632641000,-17961.66514515,0.000189,2]
[421428673,1777632641000,-461.80408768,0.000189,2]
[421428669,1777632641000,-500.0,0.00018899,2]
[421428663,1777632641000,-500.0,0.00018899,2]
[421428661,1777632641000,-500.0,0.00018899,2]
[421428667,1777632641000,-500.0,0.00018899,2]
[421428659,1777632641000,-500.0,0.00018899,2]
[421428665,1777632641000,-500.0,0.00018899,2]
[421428657,1777632641000,-500.0,0.00018899,2]
[421428662,1777632641000,-500.0,0.00018899,2]
[421428664,1777632641000,-500.0,0.00018899,2]
[421428660,1777632641000,-500.0,0.00018899,2]
[421428668,1777632641000,-500.0,0.00018899,2]
[421428681,1777632643000,-1418.9745,0.000189,2]
[421428682,1777632643000,-4603.4820427,0.000189,2]
[421428679,1777632643000,-230.35591491,0.000189,2]
[421428678,1777632643000,-152.0,0.00014933,7]
[421428680,1777632643000,-275.79946348,0.000189,2]
[421428692,1777632646000,-6739.22394895,0.000189,2]
[421428694,1777632646000,-35726.55367833,0.000189,2]
[421428695,1777632646000,-4616.88449397,0.000189,2]
[421428693,1777632646000,-15612.80076391,0.000189,2]
[421428812,1777633012000,236.17063651,0.00020355,120]
[421428817,1777633206000,187.0,0.00019666,120]
[421428818,1777633208000,187.0,0.00020649,120]
[421428819,1777633232000,168.0,0.00018805,120]
[421428820,1777633234000,168.0,0.00019745,120]
[421428821,1777633235000,168.0,0.00020733,120]
[421428822,1777633237000,168.0,0.00021769,120]
[421428828,1777633294000,-1257.48041449,0.00012897,2]
[421428829,1777633311000,-300.0,0.00013026,2]
[421428830,1777633329000,-605.0,0.00013026,2]
[421428831,1777633347000,-5000.0,0.00013027,2]
[421428832,1777633370000,-3173.06921747,0.00013159,2]
[421428851,1777633528000,170.0,0.00019116,120]
[421428869,1777633831000,-3535.16569593,0.00012512,2]
[421428873,1777633832000,-185.24420217,0.00012637,2]
[421428870,1777633832000,-964.89145865,0.00012512,2]
[421428871,1777633832000,-499.94284542,0.00012512,2]
[421428875,1777633832000,-300.0,0.00012637,2]
[421428872,1777633832000,-208.71979885,0.00012575,2]
[421428877,1777633832000,-1200.0,0.00012637,2]
[421428876,1777633832000,-300.0,0.00012637,2]
[421428878,1777633832000,-2542.19233208,0.00012638,2]
[421428879,1777633832000,-1334.24305999,0.00013526,2]
[421428874,1777633832000,-114.75579783,0.00012637,2]
[421428926,1777633838000,-274.29315871,0.0001429,2]
[421428929,1777633838000,-246.28936265,0.00014575,2]
[421428925,1777633838000,-14725.70684129,0.0001429,2]
[421428930,1777633838000,-500.0,0.00014932,7]
[421428928,1777633838000,-1764.9874553,0.00014492,2]
[421428924,1777633838000,-500.0,0.00014289,2]
[421428927,1777633838000,-247.21892933,0.00014392,2]
[421428931,1777633838000,-401.330089,0.00015068,2]
[421428932,1777633838000,-247.21892931,0.00015179,2]
[421428938,1777633838000,-442.79845311,0.00016027,2]
[421428934,1777633838000,-247.21892931,0.00015966,2]
[421428936,1777633838000,-3000.0,0.0001601,2]
[421428937,1777633838000,-3000.0,0.0001602,2]
[421428935,1777633838000,-3000.0,0.00016,2]
[421428939,1777633838000,-500.0,0.00016027,2]
[421428941,1777633838000,-354.08144915,0.00016027,2]
[421428940,1777633838000,-474.96011196,0.00016027,2]
[421428942,1777633838000,-3000.0,0.0001603,2]
[421428923,1777633838000,-587.0,0.00013901,2]
[421428933,1777633838000,-167.0,0.00015209,2]
[421428921,1777633838000,-300.0,0.00013832,2]
[421428909,1777633838000,-300.0,0.00013832,2]
[421428920,1777633838000,-300.0,0.00013832,2]
[421428901,1777633838000,-315.75694001,0.00013526,2]
[421428902,1777633838000,-612.0,0.00013526,2]
[421428903,1777633838000,-156.0,0.00013699,2]
[421428906,1777633838000,-1000.0,0.00013699,2]
[421428904,1777633838000,-1710.522569,0.00013699,2]
[421428905,1777633838000,-1587.7738399,0.00013699,2]
[421428907,1777633838000,-300.0,0.00013832,2]
[421428908,1777633838000,-300.0,0.00013832,2]
[421428950,1777633838000,-185.0,0.00017021,2]
[421428919,1777633838000,-300.0,0.00013832,2]
[421428912,1777633838000,-300.0,0.00013832,2]
[421428911,1777633838000,-300.0,0.00013832,2]
[421428910,1777633838000,-300.0,0.00013832,2]
[421428913,1777633838000,-300.0,0.00013832,2]
[421428914,1777633838000,-300.0,0.00013832,2]
[421428917,1777633838000,-300.0,0.00013832,2]
[421428916,1777633838000,-300.0,0.00013832,2]
[421428915,1777633838000,-300.0,0.00013832,2]
[421428918,1777633838000,-300.0,0.00013832,2]
[421428922,1777633838000,-420.0,0.00013864,2]
[421428945,1777633838000,-3000.0,0.0001606,2]
[421428948,1777633838000,-247.21892931,0.00016753,2]
[421428943,1777633838000,-3000.0,0.0001604,2]
[421428974,1777633838000,-500.0,0.000189,2]
[421428973,1777633838000,-400.0,0.000189,3]
[421428975,1777633838000,-500.0,0.00018971,2]
[421428969,1777633838000,-652.6,0.00018809,2]
[421428949,1777633838000,-500.0,0.00017,2]
[421428972,1777633838000,-400.0,0.000189,5]
[421428977,1777633838000,-500.0,0.00018971,2]
[421428979,1777633838000,-500.0,0.00018971,2]
[421428978,1777633838000,-578.38820334,0.00018971,2]
[421428989,1777633838000,-500.0,0.00018971,2]
[421428986,1777633838000,-631.25326532,0.00018971,2]
[421428983,1777633838000,-500.0,0.00018971,2]
[421428980,1777633838000,-500.0,0.00018971,2]
[421428984,1777633838000,-500.0,0.00018971,2]
[421428981,1777633838000,-618.69985746,0.00018971,2]
[421428982,1777633838000,-500.0,0.00018971,2]
[421428985,1777633838000,-500.0,0.00018971,2]
[421428987,1777633838000,-500.0,0.00018971,2]
[421428990,1777633838000,-500.0,0.00018971,2]
[421428971,1777633838000,-500.0,0.00018899,2]
[421428967,1777633838000,-160.0,0.00018763,3]
[421428970,1777633838000,-200.0,0.00018886,2]
[421428965,1777633838000,-652.6,0.00018611,2]
[421428944,1777633838000,-3000.0,0.0001605,2]
[421428947,1777633838000,-283.85892644,0.00016575,2]
[421428976,1777633838000,-500.0,0.00018971,2]
[421428951,1777633838000,-442.0,0.00017021,2]
[421428953,1777633838000,-247.21892931,0.00017539,2]
[421428963,1777633838000,-401.330089,0.00018493,2]
[421428954,1777633838000,-2150.738,0.00017817,2]
[421428955,1777633838000,-222.84,0.00017871,2]
[421428957,1777633838000,-652.6,0.00018015,2]
[421428946,1777633838000,-5801.394208,0.0001607,2]
[421428952,1777633838000,-150.08,0.00017503,2]
[421428961,1777633838000,-1407.56452266,0.00018365,2]
[421428968,1777633838000,-155.0,0.00018799,2]
[421428966,1777633838000,-1111.8852717,0.00018714,2]
[421428964,1777633838000,-321.42849024,0.00018575,2]
[421428988,1777633838000,-500.0,0.00018971,2]
[421428959,1777633838000,-7601.6239748,0.00018267,2]
[421428960,1777633838000,-247.21892931,0.00018326,2]
[421428958,1777633838000,-652.6,0.00018214,2]
[421428956,1777633838000,-172.34051402,0.00018,2]
[421428962,1777633838000,-652.6,0.00018412,2]
[421428992,1777633839000,-500.0,0.00018971,2]
[421429002,1777633839000,-521.55974127,0.00018973,2]
[421428991,1777633839000,-500.0,0.00018971,2]
[421429003,1777633839000,-500.0,0.00018988,2]
[421428995,1777633839000,-500.0,0.00018971,2]
[421428994,1777633839000,-500.0,0.00018971,2]
[421428993,1777633839000,-500.0,0.00018971,2]
[421428998,1777633839000,-500.0,0.00018973,2]
[421428997,1777633839000,-500.0,0.00018973,2]
[421429000,1777633839000,-500.0,0.00018973,2]
[421428999,1777633839000,-503.27348782,0.00018973,2]
[421429004,1777633839000,-5000.0,0.00018989,2]
[421429005,1777633839000,-4010.36526041,0.0001899,2]
[421428996,1777633839000,-500.0,0.00018973,2]
[421429001,1777633839000,-500.36260427,0.00018973,2]
[421429017,1777633843000,-48630.57437784,0.0001899,2]
[421429018,1777633843000,-478.55877297,0.0001899,2]
[421429028,1777633846000,-1699.29526093,0.0001899,2]
[421429025,1777633846000,-2137.03958098,0.000188,2]
[421429027,1777633846000,-32793.61533202,0.0001899,2]
[421429026,1777633846000,-5165.97807457,0.0001899,2]
[421429440,1777635040000,-300.0,0.00013832,2]
[421429439,1777635040000,-300.0,0.00013832,2]
[421429442,1777635040000,-300.0,0.00013832,2]
[421429437,1777635040000,-300.0,0.00013832,2]
[421429435,1777635040000,-300.0,0.00013832,2]
[421429434,1777635040000,-300.0,0.00013832,2]
[421429433,1777635040000,-300.0,0.00013832,2]
[421429431,1777635040000,-300.0,0.00013832,2]
[421429432,1777635040000,-300.0,0.00013832,2]
[421429429,1777635040000,-300.0,0.00013832,2]
[421429427,1777635040000,-855.261284,0.00013714,2]
[421429425,1777635040000,-1000.0,0.00013699,2]
[421429430,1777635040000,-300.0,0.00013832,2]
[421429436,1777635040000,-300.0,0.00013832,2]
[421429424,1777635040000,-193.5709714,0.00013009,2]
[421429421,1777635040000,-300.0,0.00012877,2]
[421429423,1777635040000,-602.0,0.00012878,2]
[421429422,1777635040000,-300.0,0.00012877,2]
[421429420,1777635040000,-300.0,0.00012877,2]
[421429417,1777635040000,-300.0,0.00012877,2]
[421429416,1777635040000,-5000.0,0.00012748,2]
[421429419,1777635040000,-1200.0,0.00012877,2]
[421429418,1777635040000,-209.0,0.00012877,2]
[421429428,1777635040000,-300.0,0.00013725,2]
[421429438,1777635040000,-300.0,0.00013832,2]
[421429426,1777635040000,-1777.85504803,0.00013713,2]
[421429443,1777635040000,-300.0,0.00013832,2]
[421429441,1777635040000,-300.0,0.00013832,2]
[421429468,1777635040000,-500.0,0.00016967,2]
[421429465,1777635040000,-500.0,0.00016967,2]
[421429467,1777635040000,-500.0,0.00016967,2]
[421429463,1777635040000,-463.40420452,0.00016967,2]
[421429466,1777635040000,-500.0,0.00016967,2]
[421429464,1777635040000,-500.0,0.00016967,2]
[421429462,1777635040000,-237.6395392,0.00016967,2]
[421429459,1777635040000,-500.0,0.00016967,2]
[421429458,1777635040000,-500.0,0.00016967,2]
[421429455,1777635040000,-500.0,0.00016967,2]
[421429460,1777635040000,-500.0,0.00016967,2]
[421429457,1777635040000,-500.0,0.00016967,2]
[421429461,1777635040000,-500.0,0.00016967,2]
[421429456,1777635040000,-500.0,0.00016967,2]
[421429446,1777635040000,-240.798053,0.00015068,2]
[421429445,1777635040000,-228.41374625,0.00015009,2]
[421429447,1777635040000,-164.81261954,0.00015418,2]
[421429444,1777635040000,-600.0,0.00014108,2]
[421429452,1777635040000,-2851.16833463,0.00016837,2]
[421429448,1777635040000,-15000.0,0.0001543,2]
[421429451,1777635040000,-2729.40576153,0.00016516,2]
[421429449,1777635040000,-720.0,0.00015518,2]
[421429453,1777635040000,-500.0,0.00016967,2]
[421429454,1777635040000,-500.0,0.00016967,2]
[421429450,1777635040000,-1392.50039157,0.00016195,2]
[421429486,1777635041000,-500.0,0.00016967,2]
[421429490,1777635041000,-500.0,0.00016967,2]
[421429489,1777635041000,-500.0,0.00016967,2]
[421429488,1777635041000,-500.0,0.00016967,2]
[421429487,1777635041000,-418.77334688,0.00016967,2]
[421429491,1777635041000,-500.0,0.00016967,2]
[421429496,1777635041000,-500.0,0.00016967,2]
[421429494,1777635041000,-500.0,0.00016967,2]
[421429492,1777635041000,-500.0,0.00016967,2]
[421429495,1777635041000,-500.0,0.00016967,2]
[421429499,1777635041000,-500.0,0.00016967,2]
[421429497,1777635041000,-500.0,0.00016967,2]
[421429485,1777635041000,-500.0,0.00016967,2]
[421429493,1777635041000,-500.0,0.00016967,2]
[421429484,1777635041000,-500.0,0.00016967,2]
[421429472,1777635041000,-500.0,0.00016967,2]
[421429482,1777635041000,-500.0,0.00016967,2]
[421429481,1777635041000,-500.0,0.00016967,2]
[421429480,1777635041000,-500.0,0.00016967,2]
[421429477,1777635041000,-500.0,0.00016967,2]
[421429476,1777635041000,-500.0,0.00016967,2]
[421429479,1777635041000,-500.0,0.00016967,2]
[421429475,1777635041000,-513.05949585,0.00016967,2]
[421429478,1777635041000,-500.0,0.00016967,2]
[421429474,1777635041000,-503.18362988,0.00016967,2]
[421429473,1777635041000,-500.0,0.00016967,2]
[421429469,1777635041000,-500.0,0.00016967,2]
[421429471,1777635041000,-500.0,0.00016967,2]
[421429470,1777635041000,-500.0,0.00016967,2]
[421429501,1777635041000,-500.0,0.00016967,2]
[421429483,1777635041000,-500.0,0.00016967,2]
[421429500,1777635041000,-500.0,0.00016967,2]
[421429518,1777635041000,-500.0,0.00016969,2]
[421429498,1777635041000,-500.0,0.00016967,2]
[421429531,1777635041000,-31131.37043161,0.0001697,2]
[421429533,1777635041000,-4182.12112569,0.0001697,2]
[421429532,1777635041000,-38360.89042429,0.0001697,2]
[421429530,1777635041000,-357.25185449,0.0001697,2]
[421429529,1777635041000,-1545.38,0.0001697,2]
[421429527,1777635041000,-38861.19108255,0.0001697,2]
[421429528,1777635041000,-7503.63847078,0.0001697,2]
[421429523,1777635041000,-250.0,0.00016969,2]
[421429503,1777635041000,-500.0,0.00016967,2]
[421429525,1777635041000,-216385.15108887,0.0001697,2]
[421429524,1777635041000,-524561.48436774,0.0001697,2]
[421429522,1777635041000,-500.0,0.00016969,2]
[421429519,1777635041000,-500.0,0.00016969,2]
[421429521,1777635041000,-438.9596509,0.00016969,2]
[421429520,1777635041000,-500.0,0.00016969,2]